bitfinex-derivatives/quotes_ETHF0:USTF0_20241018
["timestamp","ask_amount","ask_price","bid_price","bid_amount"]
[1729292613504,1.86405591,2638.3,2638.2,2.15602]
[1729292614016,1.48504591,2638.3,2638.2,2.15602]
[1729292614215,1.86405591,2638.3,2638.2,2.15602]
[1729292614595,0.37905,2638.1,2638.0,0.37904]
[1729292614812,1.86394205,2638.1,2638.0,1.74904]
[1729292615201,2.68704205,2638.1,2638.0,1.74904]
[1729292615514,2.87665844,2638.1,2638.0,1.37]
[1729292616607,2.68704205,2638.1,2638.0,1.37]
[1729292618306,3.67799205,2638.1,2637.7,0.99406925]
[1729292618520,0.37914,2637.4,2637.2,4.58101925]
[1729292618800,0.37914,2637.4,2637.3,1.37]
[1729292630789,0.37914,2637.4,2637.3,1.74915]
[1729292630986,0.37914,2637.4,2637.3,1.37]
[1729292631779,0.37914,2637.4,2637.3,1.74915]
[1729292637589,2.6049,2637.6,2637.3,1.37]
[1729292637590,1.2349,2637.6,2637.3,1.37]
[1729292637783,0.8247,2637.6,2637.5,1.74912]
[1729292637984,1.20381,2637.6,2637.5,1.74912]
[1729292638484,2.57381,2637.6,2637.5,1.74912]
[1729292638887,1.20381,2637.6,2637.5,2.17362]
[1729292646503,2.19285784,2637.6,2637.5,1.74912]
[1729292650405,3.18374784,2637.6,2637.2,1.35382]
[1729292650605,3.18374784,2637.6,2637.3,0.37914]
[1729292650606,1.74915,2637.4,2637.3,0.37914]
[1729292650807,1.74915,2637.4,2637.3,1.74914]
[1729292653513,0.37915,2637.3,2637.2,0.78506]
[1729292653919,0.37915,2637.3,2637.2,0.4059]
[1729292654211,0.37915,2637.3,2637.2,0.78507]
[1729292655114,0.37915,2637.3,2637.2,2.15507]
[1729292659314,1.36819784,2637.3,2637.2,2.15507]
[1729292661218,0.37915,2637.3,2637.2,2.15507]
[1729292662122,1.86386849,2637.3,2637.2,2.15507]
[1729292663215,2.05353277,2637.3,2637.2,3.14913925]
[1729292663615,2.05353209,2637.3,2637.2,3.14913925]
[1729292664207,0.56881384,2637.3,2637.2,4.10656408]
[1729292669116,0.5688133,2637.3,2637.2,4.10652354]
[1729292669824,0.5688133,2637.3,2637.2,3.14913925]
[1729292671917,3.54132026,2637.3,2637.1,0.99406925]
[1729292672120,5.17669026,2637.2,2637.1,0.37918]
[1729292672320,5.17669026,2637.2,2637.1,1.74918]
[1729292674024,5.17670352,2637.2,2637.1,1.74918]
[1729292676215,3.19504656,2637.2,2637.1,1.74918]
[1729292676618,5.17670352,2637.2,2637.1,1.74918]
[1729292676823,1.82504656,2637.2,2637.1,1.74918]
[1729292678630,1.82504656,2637.2,2637.1,1.74918]
[1729292678831,1.82504275,2637.2,2637.1,1.74918]
[1729292683732,1.82504311,2637.2,2637.1,1.74918]
[1729292686332,3.31097055,2637.2,2637.1,1.74918]
[1729292686631,1.82504311,2637.2,2637.1,1.74918]
[1729292688233,3.80670007,2637.2,2637.1,1.74918]
[1729292688429,1.82504311,2637.2,2637.1,1.74918]
[1729292688629,1.8250441,2637.2,2637.1,1.74918]
[1729292688829,3.31151543,2637.2,2637.1,1.74918]
[1729292689431,1.8250441,2637.2,2637.1,1.74918]
[1729292690734,3.80670106,2637.2,2637.1,1.74918]
[1729292692030,1.8250441,2637.2,2637.1,1.74918]
[1729292692242,3.80670106,2637.2,2637.1,1.74918]
[1729292693537,3.80670266,2637.2,2637.1,1.74918]
[1729292695048,3.80670348,2637.2,2637.1,1.74918]
[1729292698748,3.80670396,2637.2,2637.1,1.74918]
[1729292701948,3.61702696,2637.2,2637.1,1.74918]
[1729292702253,3.80670523,2637.2,2637.1,1.74918]
[1729292703452,1.82504827,2637.2,2637.1,2.74324925]
[1729292703856,1.82504827,2637.2,2637.1,1.74918]
[1729292703857,3.80670523,2637.2,2637.1,1.74918]
[1729292706143,3.80670523,2637.2,2637.1,0.37918]
[1729292706350,1.82504827,2637.2,2637.1,0.37918]
[1729292707052,1.82505394,2637.2,2637.1,0.37918]
[1729292708753,3.80772359,2637.2,2637.1,0.37918]
[1729292708953,1.82505394,2637.2,2637.1,0.37918]
[1729292709151,1.82505394,2637.2,2637.1,1.74918]
[1729292712860,1.82504933,2637.2,2637.1,1.74918]
[1729292713154,1.48720806,2637.3,2637.1,2.3275]
[1729292713363,0.99155913,2637.2,2637.1,0.77628]
[1729292713662,0.99155913,2637.2,2637.1,1.73385456]
[1729292714058,0.99155913,2637.2,2637.1,3.10385456]
[1729292715854,0.99155913,2637.2,2637.1,6.31165456]
[1729292716760,0.99155913,2637.2,2637.1,8.29968337]
[1729292716961,0.99155913,2637.2,2637.1,6.31154486]
[1729292718565,0.99155913,2637.2,2637.1,7.68154486]
[1729292718867,0.99155913,2637.2,2637.1,11.47354486]
[1729292721067,0.99155913,2637.2,2637.1,10.10354486]
[1729292721268,0.99155913,2637.2,2637.1,7.80324703]
[1729292721567,0.99155913,2637.3,2637.1,6.31123]
[1729292721766,0.99155913,2637.3,2637.2,4.19798589]
[1729292721967,1.48720806,2637.4,2637.3,0.37915]
[1729292722168,1.67686074,2637.4,2637.3,2.74361266]
[1729292722461,1.93879268,2637.4,2637.3,1.74915]
[1729292723666,3.42505077,2637.4,2637.3,2.74361266]
[1729292723866,3.42504776,2637.4,2637.3,2.74361266]
[1729292724170,1.67590776,2637.4,2637.3,2.74361266]
[1729292724465,1.67590776,2637.4,2637.3,1.74915]
[1729292724862,1.67590776,2637.4,2637.3,2.74361266]
[1729292725267,1.67590776,2637.4,2637.3,1.74915]
[1729292725863,2.05504776,2637.4,2637.3,1.74915]
[1729292726271,1.67590776,2637.4,2637.3,1.74915]
[1729292726472,2.05504829,2637.4,2637.3,1.74915]
[1729292727771,1.48625508,2637.4,2637.3,1.74915]
[1729292728174,1.86539508,2637.4,2637.3,1.74915]
[1729292728875,1.48625508,2637.4,2637.3,2.74361266]
[1729292729469,1.48625508,2637.4,2637.3,1.74915]
[1729292730371,0.99018744,2637.4,2637.3,2.74361266]
[1729292730572,4.46798508,2637.5,2637.4,0.37914]
[1729292730775,3.17137888,2637.5,2637.4,1.74914]
[1729292731573,4.65663876,2637.5,2637.4,1.74914]
[1729292731875,3.17137888,2637.5,2637.4,1.74914]
[1729292732267,4.65660316,2637.5,2637.4,1.74914]
[1729292732675,4.65652415,2637.5,2637.4,1.74914]
[1729292733975,4.65668844,2637.5,2637.4,1.74914]
[1729292735476,4.65668663,2637.5,2637.4,1.74914]
[1729292735679,3.17137707,2637.5,2637.4,1.74914]
[1729292735870,4.65659023,2637.5,2637.4,1.74914]
[1729292737494,3.28659023,2637.5,2637.4,1.74914]
[1729292737691,4.65659023,2637.5,2637.4,1.74914]
[1729292738893,3.17137707,2637.5,2637.4,1.74914]
[1729292739191,4.65657744,2637.5,2637.4,1.74914]
[1729292739880,4.65657711,2637.5,2637.4,1.74914]
[1729292740081,3.17137674,2637.5,2637.4,1.74914]
[1729292740479,4.65656482,2637.5,2637.4,1.74914]
[1729292740685,3.17137674,2637.5,2637.4,1.74914]
[1729292741185,3.17137922,2637.5,2637.4,1.74914]
[1729292741390,4.65661806,2637.5,2637.4,1.74914]
[1729292741593,3.17137922,2637.5,2637.4,1.74914]
[1729292745988,3.17138562,2637.5,2637.4,1.74914]
[1729292747198,4.65669191,2637.5,2637.4,1.74914]
[1729292747398,3.17138562,2637.5,2637.4,1.74914]
[1729292752002,3.17138562,2637.5,2637.4,1.74914]
[1729292753090,1.98283513,2637.6,2637.4,2.74]
[1729292753405,3.47499663,2638.2,2637.7,0.94774]
[1729292753406,0.99062049,2638.0,2637.7,0.94774]
[1729292753603,0.99062049,2638.1,2637.9,7.93555905]
[1729292753798,0.99062049,2638.1,2638.0,3.89793313]
[1729292754004,0.4077,2638.4,2638.0,3.89793313]
[1729292754005,0.99062049,2638.2,2638.0,7.30928313]
[1729292754194,0.4077,2638.4,2638.1,2.32698313]
[1729292754515,0.99008478,2638.3,2638.2,2.84859938]
[1729292754802,0.99013614,2638.4,2638.2,8.41737938]
[1729292754996,0.99013614,2638.6,2638.5,0.37898]
[1729292755304,0.99013614,2638.6,2638.5,6.37824684]
[1729292755491,0.99013614,2638.7,2638.6,0.37896]
[1729292755691,0.99013614,2638.7,2638.6,3.11896]
[1729292755899,0.99013614,2638.7,2638.6,4.11107308]
[1729292756199,0.4043,2638.8,2638.6,3.11896]
[1729292756200,1.39443614,2638.8,2638.6,3.11896]
[1729292756393,1.39443614,2638.8,2638.7,1.74895]
[1729292757201,0.4043,2638.8,2638.7,1.74895]
[1729292757893,1.37,2639.3,2638.9,0.37892]
[1729292757894,0.99013614,2639.0,2638.9,0.37892]
[1729292758098,0.99013614,2639.0,2638.9,1.74892]
[1729292758306,0.99013614,2639.1,2639.0,0.37891]
[1729292758497,0.99013614,2639.1,2639.0,1.74891]
[1729292758700,1.41153614,2639.2,2639.1,0.37889]
[1729292758898,1.41153614,2639.2,2639.1,1.74889]
[1729292759314,0.4214,2639.2,2639.1,1.74889]
[1729292762805,1.7914,2639.2,2639.1,1.37]
[1729292763006,2.17028,2639.2,2639.1,1.37]
[1729292763199,5.95908,2639.2,2639.0,1.1689]
[1729292763499,2.17028,2639.2,2639.0,0.79]
[1729292763704,2.17028,2639.2,2639.0,1.1689]
[1729292763899,1.7914,2639.2,2639.1,0.37889]
[1729292764294,5.5802,2639.2,2639.1,0.37889]
[1729292764801,4.2102,2639.2,2639.1,0.37889]
[1729292765004,5.5802,2639.2,2639.1,0.37889]
[1729292765309,5.95908,2639.2,2639.1,0.37889]
[1729292766009,5.5802,2639.2,2639.1,0.37889]
[1729292766806,5.95908,2639.2,2639.1,0.37889]
[1729292767306,2.17028,2639.2,2639.1,0.37889]
[1729292767506,1.7914,2639.2,2639.1,0.37889]
[1729292767705,2.17028,2639.2,2639.1,0.37889]
[1729292767905,1.7914,2639.2,2639.1,0.37889]
[1729292770107,1.7914,2639.2,2639.0,2.16]
[1729292770108,0.37894,2638.8,2638.3,3.6264]
[1729292770306,9.74410712,2639.9,2638.3,3.6264]
[1729292770307,1.64015,2638.7,2638.6,0.37896]
[1729292770516,0.3789,2639.1,2638.6,2.31741]
[1729292770713,0.3789,2639.1,2639.0,1.74891]
[1729292771004,0.3789,2639.1,2639.0,1.37]
[1729292772604,4.1685,2639.1,2639.0,1.37]
[1729292772904,0.3789,2639.1,2639.0,1.37]
[1729292773205,4.1685,2639.1,2639.0,1.37]
[1729292773406,4.16849,2639.1,2639.0,1.37]
[1729292773808,0.37889,2639.1,2639.0,1.37]
[1729292774200,0.37889,2639.1,2638.9,1.74891]
[1729292775018,0.37889,2639.1,2638.9,1.37]
[1729292775208,0.37889,2639.1,2638.9,1.74891]
[1729292775916,0.37889,2639.1,2639.0,0.37891]
[1729292777914,2.6312,2639.2,2639.0,0.37891]
[1729292778111,1.2612,2639.2,2639.0,1.37]
[1729292778311,1.2612,2639.2,2639.1,0.37889]
[1729292778710,2.6312,2639.2,2639.1,0.37889]
[1729292779311,3.01008,2639.2,2639.1,0.37889]
[1729292779506,2.6312,2639.2,2639.1,0.37889]
[1729292779813,3.01008,2639.2,2639.1,0.37889]
[1729292780015,3.01008,2639.2,2639.0,1.7489]
[1729292780314,1.2612,2639.2,2639.1,1.74889]
[1729292788115,1.2612,2639.2,2639.1,0.37889]
[1729292796330,2.25043159,2639.2,2639.1,0.37889]
[1729292797220,1.45073443,2639.2,2639.1,0.37889]
[1729292798526,3.42919762,2639.2,2639.1,0.37889]
[1729292799326,3.29046656,2639.2,2639.1,0.37889]
[1729292799957,2.02926656,2639.2,2639.1,1.74889]
[1729292800126,2.175037,2639.2,2639.1,1.74889]
[1729292800421,2.175037,2639.2,2639.1,2.739159]
[1729292800723,0.18953443,2639.2,2639.1,3.71136763]
[1729292800926,2.175037,2639.3,2639.2,0.37888]
[1729292801119,2.1750177,2639.3,2639.2,1.74888]
[1729292802027,2.1750177,2639.3,2639.2,4.95668]
[1729292802619,2.1750177,2639.3,2639.2,1.74888]
[1729292803122,1.98550257,2639.3,2639.2,1.74888]
[1729292803430,2.1750143,2639.3,2639.2,4.95668]
[1729292804922,0.18951173,2639.3,2639.2,4.95668]
[1729292805523,0.18951173,2639.3,2639.2,1.74888]
[1729292806326,0.18951173,2639.3,2639.2,4.95668]
[1729292807435,0.18951173,2639.3,2639.2,1.74888]
[1729292807625,0.18951173,2639.3,2639.2,4.95668]
[1729292808132,0.18951404,2639.3,2639.2,4.95668]
[1729292809933,0.4083,2639.4,2639.3,0.37886]
[1729292810129,0.59781201,2639.4,2639.3,1.74886]
[1729292810333,0.59781201,2639.4,2639.3,2.15976]
[1729292812050,2.58331458,2639.4,2639.3,2.15976]
[1729292812246,0.59781201,2639.4,2639.3,2.15976]
[1729292812944,0.59781227,2639.4,2639.3,2.15976]
[1729292815228,0.4083,2639.4,2639.3,2.15976]
[1729292815429,0.59781119,2639.4,2639.3,2.15976]
[1729292817831,0.4083,2639.4,2639.3,2.15976]
[1729292818032,0.59781089,2639.4,2639.3,2.15976]
[1729292818740,0.18951089,2639.4,2639.3,2.15976]
[1729292818944,1.48713552,2639.4,2639.3,6.9397]
[1729292819140,0.99134564,2639.5,2639.3,7.929969]
[1729292819338,0.99124519,2639.5,2639.4,3.926]
[1729292819643,0.99124519,2639.5,2639.4,4.30485]
[1729292819944,0.99124519,2639.5,2639.4,3.925119]
[1729292820339,0.99124519,2639.5,2639.4,5.295119]
[1729292820541,0.99124519,2639.6,2639.5,0.37884]
[1729292820743,0.99124519,2639.6,2639.5,4.95664]
[1729292820939,1.48713552,2639.7,2639.6,0.37882]
[1729292821139,2.17499308,2639.8,2639.7,0.37881]
[1729292821436,2.59829276,2639.8,2639.7,1.74881]
[1729292822041,2.97708276,2639.8,2639.7,1.74881]
[1729292822433,0.61279019,2639.8,2639.7,1.74881]
[1729292822632,2.09961787,2639.8,2639.7,1.74881]
[1729292822837,1.48682768,2639.8,2639.7,1.74881]
[1729292824247,0.99115129,2639.8,2639.7,1.74881]
[1729292824452,1.48682768,2639.8,2639.7,1.74881]
[1729292824639,1.90162768,2639.9,2639.8,0.37879]
[1729292824945,0.60427942,2639.9,2639.8,1.74879]
[1729292825347,1.90095881,2639.9,2639.8,1.74879]
[1729292825550,2.09043823,2639.9,2639.8,1.74879]
[1729292826045,2.09043453,2639.9,2639.8,1.74879]
[1729292827149,0.60427572,2639.9,2639.8,1.74879]
[1729292830341,1.90032666,2639.9,2639.8,1.74879]
[1729292830542,2.08980238,2639.9,2639.8,1.74879]
[1729292831541,1.40481034,2639.9,2639.8,5.53679]
[1729292832656,1.48552666,2640.1,2639.8,6.90679]
[1729292832841,1.48552666,2640.3,2640.0,5.9478]
[1729292833046,6.02690257,2640.5,2640.4,0.37871]
[1729292833047,5.52692666,2640.5,2640.4,0.37871]
[1729292833347,5.52627522,2640.5,2640.4,1.74871]
[1729292834451,4.0414,2640.5,2640.4,1.74871]
[1729292835540,0.8336,2640.5,2640.4,1.74871]
[1729292836948,1.21229,2640.5,2640.4,1.74871]
[1729292837153,0.8336,2640.5,2640.4,1.74871]
[1729292837947,0.8336,2640.5,2640.4,2.53671]
[1729292838351,1.21229,2640.5,2640.4,2.53671]
[1729292838948,0.37875,2640.2,2640.1,0.37874]
[1729292839153,0.37875,2640.1,2640.0,0.788]
[1729292839351,1.20895,2640.1,2640.0,2.158]
[1729292839658,1.20895,2640.1,2640.0,1.37]
[1729292840152,1.20895,2640.1,2640.0,1.74876]
[1729292841154,0.8302,2640.1,2640.0,1.74876]
[1729292841455,1.20895,2640.1,2640.0,1.74876]
[1729292842960,0.8302,2640.1,2640.0,1.74876]
[1729292843160,1.20895,2640.1,2640.0,1.74876]
[1729292843357,1.60115,2640.1,2640.0,1.74876]
[1729292844449,7.00944522,2640.4,2640.0,1.37]
[1729292844450,6.06267522,2640.4,2640.0,1.37]
[1729292844657,6.06267522,2640.4,2640.3,3.11872]
[1729292844658,3.2078,2640.4,2640.3,3.11872]
[1729292844856,3.2078,2640.4,2640.3,1.74872]
[1729292845465,0.7709,2640.5,2640.4,0.37871]
[1729292845662,0.7709,2640.5,2640.4,1.74871]
[1729292846358,0.3922,2640.5,2640.4,1.74871]
[1729292846561,0.77089,2640.5,2640.4,1.74871]
[1729292847662,0.3922,2640.5,2640.4,1.74871]
[1729292848652,0.3922,2640.5,2640.4,2.53671]
[1729292850358,0.8545,2640.6,2640.4,2.53671]
[1729292850566,0.8545,2640.6,2640.5,1.74869]
[1729292850772,0.8545,2640.6,2640.5,2.15219]
[1729292852268,0.4275,2640.6,2640.5,2.15219]
[1729292859667,0.4275,2640.6,2640.5,5.35999]
[1729292860676,0.77685,2640.8,2640.7,0.37866]
[1729292860969,0.37862,2641.1,2641.0,0.37862]
[1729292861180,1.18002,2641.1,2641.0,1.37]
[1729292861579,1.18002,2641.1,2641.0,1.74862]
[1729292862583,1.59792,2641.1,2641.0,1.74862]
[1729292863572,1.59791,2641.1,2641.0,1.74862]
[1729292867375,0.37858,2641.3,2641.2,0.37859]
[1729292867677,0.37858,2641.3,2641.2,4.95639]
[1729292867678,0.8495,2641.3,2641.2,4.95639]
[1729292868573,1.22808,2641.3,2641.2,4.95639]
[1729292868974,1.22808,2641.3,2641.2,1.74859]
[1729292869179,1.48487522,2641.5,2641.4,0.37856]
[1729292869375,0.37856,2641.5,2641.4,2.53656]
[1729292869572,1.37,2641.5,2641.3,1.74857]
[1729292869774,1.74855,2641.5,2641.4,2.158]
[1729292870183,1.74855,2641.5,2641.4,1.37]
[1729292871289,0.37855,2641.5,2641.4,1.37]
[1729292871477,0.37855,2641.5,2641.4,1.74856]
[1729292871683,0.37855,2641.5,2641.4,1.37]
[1729292877696,1.74855,2641.5,2641.4,1.37]
[1729292880386,4.5778,2641.5,2641.0,1.37]
[1729292880581,4.5778,2641.5,2641.0,2.157]
[1729292880582,1.37,2641.2,2641.0,2.157]
[1729292880895,1.37,2641.2,2641.0,1.16561]
[1729292880896,1.58471,2641.1,2641.0,1.16561]
[1729292881279,1.2061,2641.1,2641.0,1.16561]
[1729292881691,1.2061,2641.1,2641.0,1.74861]
[1729292887889,1.58471,2641.1,2641.0,1.74861]
[1729292889099,1.2061,2641.1,2641.0,1.74861]
[1729292890098,1.58471,2641.1,2641.0,2.53561]
[1729292890793,1.58471,2641.1,2641.0,1.74861]
[1729292890999,1.58471,2641.1,2641.0,2.53561]
[1729292891492,1.2061,2641.1,2641.0,2.53561]
[1729292892202,1.58471,2641.1,2641.0,2.53561]
[1729292892698,1.2061,2641.1,2641.0,2.53561]
[1729292893700,1.58471,2641.1,2641.0,2.53561]
[1729292894005,1.2061,2641.1,2641.0,2.53561]
[1729292895499,2.69161964,2641.1,2641.0,2.53561]
[1729292896388,2.69161964,2641.1,2641.0,1.74861]
[1729292896594,2.69161964,2641.1,2641.0,2.53561]
[1729292899397,2.8810145,2641.1,2641.0,2.53561]
[1729292899799,2.88101396,2641.1,2641.0,2.53561]
[1729292899998,2.69161964,2641.1,2641.0,2.53561]
[1729292900302,3.25962325,2641.1,2641.0,2.53561]
[1729292901205,2.88101325,2641.1,2641.0,2.53561]
[1729292902400,3.25962325,2641.1,2641.0,2.53561]
[1729292903301,1.77410361,2641.1,2641.0,2.53561]
[1729292903601,1.39549361,2641.1,2641.0,2.53561]
[1729292903805,2.69309073,2641.1,2641.0,2.53561]
[1729292904002,2.88248434,2641.1,2641.0,2.53561]
[1729292904205,1.77410361,2641.1,2641.0,2.53561]
[1729292906211,3.0721767,2641.1,2641.0,3.52694662]
[1729292906509,3.26156949,2641.1,2641.0,3.52694662]
[1729292906708,3.26156949,2641.1,2641.0,2.53561]
[1729292907106,2.88295949,2641.1,2641.0,2.53561]
[1729292907306,1.39549279,2641.1,2641.0,2.53561]
[1729292907504,1.77410279,2641.1,2641.0,2.53561]
[1729292908403,1.39549279,2641.1,2641.0,2.53561]
[1729292908608,1.77410279,2641.1,2641.0,2.53561]
[1729292910015,1.77410279,2641.1,2641.0,3.52694662]
[1729292910912,1.77410279,2641.1,2641.0,2.53561]
[1729292911114,1.77410279,2641.1,2641.0,3.52694662]
[1729292911411,0.37862,2641.0,2640.9,0.99133662]
[1729292911610,8.20030685,2641.0,2640.9,0.34493662]
[1729292911913,8.20030685,2641.0,2640.4,5.19047325]
[1729292911914,0.37868,2640.6,2640.4,3.2078]
[1729292912216,2.57269,2640.5,2640.4,3.9948]
[1729292912403,2.76212179,2640.5,2640.4,4.5778]
[1729292912715,1.39212179,2640.5,2640.4,4.5778]
[1729292912914,3.37605478,2640.5,2640.4,4.5778]
[1729292913114,2.76212179,2640.5,2640.4,4.5778]
[1729292913308,8.53325478,2640.5,2640.4,4.5778]
[1729292913507,8.53325478,2640.5,2640.4,3.2078]
[1729292913710,0.37874,2640.2,2640.1,4.5778]
[1729292913901,3.23530764,2640.2,2640.1,3.2078]
[1729292914102,0.37876,2640.1,2640.0,1.37]
[1729292914320,2.87753837,2640.1,2640.0,1.37]
[1729292914723,3.30703837,2640.1,2640.0,1.37]
[1729292915016,1.82171258,2640.1,2640.0,1.37]
[1729292915216,3.1174833,2640.1,2640.0,1.37]
[1729292916212,1.63226,2640.1,2640.0,1.37]
[1729292918710,3.00226,2640.1,2640.0,1.37]
[1729292922926,3.00226,2640.1,2639.8,0.37878]
[1729292922927,0.37878,2639.9,2639.8,0.37878]
[1729292923129,2.6235,2640.1,2639.8,1.74878]
[1729292923315,2.6235,2640.1,2640.0,1.37]
[1729292923316,3.00225,2640.1,2640.0,1.37]
[1729292924224,3.00225,2640.1,2639.6,0.787]
[1729292924225,0.37882,2639.7,2639.6,0.787]
[1729292924419,0.37882,2639.7,2639.6,1.37]
[1729292924420,1.74882,2639.7,2639.6,1.37]
[1729292924617,0.37882,2639.6,2639.5,3.2078]
[1729292924822,1.65392,2639.6,2639.5,4.95664]
[1729292925216,1.2751,2639.6,2639.5,3.58664]
[1729292925416,1.2751,2639.6,2639.5,4.95664]
[1729292925926,0.37877,2640.0,2639.6,0.37882]
[1729292926128,2.6451,2640.3,2639.7,0.3903]
[1729292926430,2.6451,2640.3,2640.1,1.37]
[1729292926431,1.37,2640.2,2640.1,1.37]
[1729292926729,1.74874,2640.2,2640.1,1.37]
[1729292932331,0.37875,2640.1,2640.0,0.37876]
[1729292936825,0.37875,2640.1,2640.0,1.74876]
[1729292942238,0.37878,2640.0,2639.9,1.74877]
[1729292942536,5.4256,2640.3,2639.9,1.37]
[1729292942836,0.76954,2640.2,2640.1,0.37874]
[1729292943341,3.6289,2640.3,2640.2,0.37874]
[1729292943540,3.2078,2640.3,2640.2,0.37874]
[1729292943744,3.2078,2640.3,2640.2,0.80064]
[1729292944133,3.2078,2640.3,2640.2,2.17064]
[1729292945645,3.58652,2640.3,2640.2,2.17064]
[1729292945943,3.2078,2640.3,2640.2,0.80064]
[1729292947939,3.58652,2640.3,2640.2,0.80064]
[1729292948639,0.37872,2640.3,2640.2,0.80064]
[1729292948843,0.7695,2640.5,2640.4,0.37871]
[1729292949232,2.32168945,2640.7,2640.3,0.4195]
[1729292949447,0.37869,2640.6,2640.5,0.37868]
[1729292951152,1.22037,2640.7,2640.6,0.37868]
[1729292952738,2.2088549,2640.7,2640.6,0.37868]
[1729292953442,2.20919777,2640.7,2640.6,0.37868]
[1729292954346,1.22037,2640.7,2640.6,0.37868]
[1729292954935,2.20950323,2640.7,2640.6,0.37868]
[1729292955245,2.70035945,2640.7,2640.6,0.37868]
[1729292955540,2.88979256,2640.7,2640.6,0.37868]
[1729292956136,1.40980311,2640.7,2640.6,0.37868]
[1729292956945,1.40980594,2640.7,2640.6,0.37868]
[1729292957144,3.3831252,2640.7,2640.6,0.37868]
[1729292957441,1.40980594,2640.7,2640.6,0.37868]
[1729292957644,0.18943594,2640.7,2640.6,0.37868]
[1729292957846,1.48533759,2640.7,2640.6,0.37868]
[1729292958142,2.05343353,2640.7,2640.6,0.37868]
[1729292958348,2.05341992,2640.7,2640.6,0.37868]
[1729292958750,1.67475992,2640.7,2640.6,0.37868]
[1729292959153,1.48533759,2640.7,2640.4,3.3894]
[1729292959353,1.48533759,2640.7,2640.6,0.37868]
[1729292963351,0.78745,2640.8,2640.7,0.37866]
[1729292963560,2.27232156,2640.8,2640.7,0.37866]
[1729292963855,2.46174829,2640.8,2640.7,0.37866]
[1729292964643,0.97687673,2640.8,2640.7,0.37866]
[1729292965053,2.27226305,2640.8,2640.7,0.37866]
[1729292965258,2.46168978,2640.8,2640.7,0.37866]
[1729292965852,3.82168978,2640.8,2640.7,1.73866]
[1729292966551,3.63226305,2640.8,2640.7,1.73866]
[1729292966753,3.82169044,2640.8,2640.7,1.73866]
[1729292967246,3.82169044,2640.8,2640.7,1.36]
[1729292967444,0.37866,2640.7,2640.6,1.73867]
[1729292967647,1.86338286,2640.7,2640.6,0.37867]
[1729292968661,2.05281903,2640.7,2640.6,0.37867]
[1729292968851,2.05281903,2640.7,2640.5,1.73868]
[1729292968852,0.37868,2640.6,2640.5,1.73868]
[1729292969053,1.79735718,2640.6,2640.5,1.73868]
[1729292971143,1.7976781,2640.6,2640.5,1.73868]
[1729292971355,0.80758,2640.6,2640.5,1.73868]
[1729292974158,0.80758,2640.6,2640.5,0.37868]
[1729292974562,2.29230286,2640.6,2640.5,1.73868]
[1729292976954,1.91362286,2640.6,2640.5,1.73868]
[1729292977163,2.29230286,2640.6,2640.5,1.73868]
[1729292977657,1.91362286,2640.6,2640.5,1.73868]
[1729292978164,2.10305402,2640.6,2640.5,1.73868]
[1729292978658,1.91362286,2640.6,2640.5,1.73868]
[1729292979251,2.10305536,2640.6,2640.5,1.73868]
[1729292979458,2.10305542,2640.6,2640.5,1.73868]
[1729292979761,1.91362286,2640.6,2640.5,1.73868]
[1729292980061,2.1030531,2640.6,2640.5,1.73868]
[1729292981256,0.61833024,2640.6,2640.5,1.73868]
[1729292981455,1.48737408,2640.6,2640.5,1.73868]
[1729292982355,1.48737408,2640.6,2640.5,4.94648]
[1729292983550,0.99157834,2640.6,2640.5,8.73369]
[1729292983957,0.99157834,2640.6,2640.5,9.70434857]
[1729292986058,0.99157834,2640.6,2640.5,11.18669744]
[1729292986361,0.99157834,2640.6,2640.5,9.70425641]
[1729292987258,0.99157834,2640.6,2640.5,9.70421861]
[1729292988262,0.99157834,2640.6,2640.5,6.49641861]
[1729292988653,0.99157834,2640.6,2640.5,9.70421861]
[1729292989257,0.99157834,2640.6,2640.5,5.91701861]
[1729292990155,0.99157834,2640.6,2640.5,2.70921861]
[1729292990355,0.99157834,2640.6,2640.5,5.91701861]
[1729292990953,0.99157834,2640.6,2640.5,4.94649]
[1729292991155,0.99157834,2640.6,2640.5,5.91709604]
[1729292991356,0.99157834,2640.6,2640.5,7.39944491]
[1729292994470,0.99157834,2640.6,2640.5,11.18664491]
[1729292995773,0.99157834,2640.6,2640.5,11.18704411]
[1729292996268,0.99157834,2640.6,2640.5,7.97924411]
[1729292996461,1.48737408,2640.7,2640.5,10.80835411]
[1729292996661,1.48737408,2640.7,2640.6,1.73868]
[1729292997065,1.48737408,2640.7,2640.6,5.52588]
[1729292997568,1.48737408,2640.7,2640.6,1.73868]
[1729292997767,1.48737408,2640.7,2640.6,5.52588]
[1729292997968,1.48737408,2640.7,2640.6,1.73868]
[1729293000767,1.48737408,2640.7,2640.6,2.70970007]
[1729293001561,1.48737408,2640.7,2640.6,1.73868]
[1729293001765,1.48737408,2640.7,2640.6,4.1920368]
[1729293002874,1.48737408,2640.7,2640.6,3.22102887]
[1729293007375,1.2626,2640.9,2640.6,1.73868]
[1729293007579,1.2626,2640.9,2640.8,1.73865]
[1729293008678,1.45200625,2640.9,2640.8,1.73865]
[1729293008875,3.43615411,2640.9,2640.8,1.73865]
[1729293010683,4.98537786,2640.9,2640.8,1.73865]
[1729293010993,3.24674786,2640.9,2640.8,1.73865]
[1729293011779,4.60674786,2640.9,2640.7,0.37866]
[1729293012084,0.37866,2640.7,2640.6,3.22833536]
[1729293012384,1.73866,2640.7,2640.6,3.22833536]
[1729293012579,0.37866,2640.7,2640.6,3.22833536]
[1729293013887,0.56809138,2640.7,2640.6,1.73867]
[1729293014086,2.36233962,2640.7,2640.6,1.73867]
[1729293014280,3.911796,2640.7,2640.6,1.36]
[1729293014479,0.37869,2640.6,2640.5,0.37869]
[1729293014789,3.95704659,2640.6,2640.5,1.73869]
[1729293014979,4.33572659,2640.6,2640.5,1.73869]
[1729293015789,4.33572836,2640.6,2640.5,1.73869]
[1729293019892,3.95704836,2640.6,2640.5,1.73869]